fUST/lending_fUST_20241102
["ID","MTS","AMOUNT","RATE_DAILY","PERIOD"]
[341156829,1730483444612,-380.55,0.00034045,4]
[341156830,1730483444622,-500.0,0.00034045,4]
[341156831,1730483444631,-500.0,0.00034045,4]
[341156832,1730483444642,-500.0,0.00034045,4]
[341156833,1730483444651,-500.0,0.00034045,4]
[341156834,1730483444661,-500.0,0.00034045,4]
[341156835,1730483444670,-500.0,0.00034045,4]
[341156836,1730483444680,-500.0,0.00034045,4]
[341156837,1730483444691,-500.0,0.00034045,4]
[341156838,1730483444702,-500.0,0.00034045,4]
[341156839,1730483444712,-500.0,0.00034045,4]
[341156840,1730483444724,-500.0,0.00034045,4]
[341156841,1730483444734,-500.0,0.00034045,4]
[341156843,1730483444745,-500.0,0.00034045,4]
[341156845,1730483444755,-369.53366413,0.00034045,4]
[341156847,1730483444766,-502.13564948,0.00034045,4]
[341156849,1730483444777,-1186.02,0.00034045,4]
[341156851,1730483444787,-501.52354579,0.00034045,4]
[341156853,1730483444797,-500.0,0.00034045,4]
[341156868,1730483444935,-500.0,0.00034045,4]
[341156870,1730483444947,-500.0,0.00034045,4]
[341156872,1730483444956,-500.0,0.00034045,4]
[341156874,1730483444968,-500.0,0.00034045,4]
[341156876,1730483444978,-500.0,0.00034045,4]
[341156879,1730483444990,-500.0,0.00034045,4]
[341156881,1730483445001,-500.0,0.00034045,4]
[341156883,1730483445010,-500.0,0.00034045,4]
[341156885,1730483445022,-500.0,0.00034045,4]
[341156887,1730483445031,-500.0,0.00034045,4]
[341156889,1730483445041,-500.0,0.00034045,4]
[341156891,1730483445053,-500.0,0.00034045,4]
[341156893,1730483445063,-500.0,0.00034045,4]
[341156895,1730483445072,-500.0,0.00034045,4]
[341156897,1730483445082,-500.0,0.00034045,4]
[341156899,1730483445093,-500.0,0.00034045,4]
[341156901,1730483445104,-500.0,0.00034045,4]
[341156903,1730483445115,-500.0,0.00034045,4]
[341156905,1730483445125,-500.0,0.00034045,4]
[341156908,1730483445136,-500.0,0.00034045,4]
[341156910,1730483445145,-500.0,0.00034046,4]
[341156912,1730483445156,-500.0,0.00034046,4]
[341156914,1730483445166,-500.0,0.00034046,4]
[341156916,1730483445175,-500.0,0.00034046,4]
[341156918,1730483445184,-500.0,0.00034046,4]
[341156920,1730483445193,-500.0,0.00034046,4]
[341156922,1730483445203,-500.0,0.00034046,4]
[341156924,1730483445214,-500.0,0.00034046,4]
[341156926,1730483445223,-4105.46,0.00034046,4]
[341156928,1730483445233,-1741.08,0.00034046,4]
[341156930,1730483445243,-500.0,0.00034046,4]
[341156932,1730483445254,-500.0,0.00034046,4]
[341156934,1730483445264,-500.0,0.00034046,4]
[341156936,1730483445273,-1316.0,0.00034046,4]
[341156938,1730483445283,-500.0,0.00034046,4]
[341156940,1730483445293,-979.64,0.00034046,4]
[341156942,1730483445305,-867.06,0.00034046,4]
[341156944,1730483445315,-500.0,0.00034046,4]
[341156946,1730483445325,-500.0,0.00034046,4]
[341156948,1730483445336,-500.0,0.00034046,4]
[341156950,1730483445346,-500.0,0.00034046,4]
[341156952,1730483445356,-500.0,0.00034046,4]
[341156954,1730483445366,-500.0,0.00034046,4]
[341156956,1730483445376,-500.0,0.00034046,4]
[341156958,1730483445387,-500.0,0.00034046,4]
[341156960,1730483445397,-500.0,0.00034046,4]
[341156962,1730483445408,-506.39226222,0.00034046,4]
[341156964,1730483445419,-560.85,0.00034046,4]
[341156966,1730483445429,-500.0,0.00034046,4]
[341156968,1730483445439,-500.0,0.00034046,4]
[341156970,1730483445449,-500.0,0.00034046,4]
[341156973,1730483445461,-500.0,0.00034046,4]
[341156975,1730483445472,-500.0,0.00034046,4]
[341156977,1730483445482,-500.0,0.00034046,4]
[341156979,1730483445491,-266.82671898,0.00034046,2]
[341156981,1730483445502,-500.0,0.00034253,4]
[341156983,1730483445513,-974.99,0.00034253,4]
[341156985,1730483445523,-500.0,0.00034253,4]
[341156987,1730483445533,-500.0,0.00034253,4]
[341156989,1730483445545,-500.0,0.00034253,4]
[341156991,1730483445557,-11602.08957625,0.00034253,4]
[341157002,1730483445661,-300.07417966,0.00033058,2]
[341157004,1730483445671,-85.50042375,0.00034253,4]
[341157006,1730483445681,-417.31539659,0.00034253,4]
[341157009,1730483445694,-82.68460341,0.00034253,4]
[341157011,1730483445704,-7344.85426696,0.00034253,3]
[341157037,1730483446462,-7208.23573304,0.00034253,3]
[341157038,1730483446472,-1467.81,0.00034253,4]
[341157039,1730483446482,-987.71,0.00034253,4]
[341157040,1730483446492,-500.0,0.00034253,4]
[341157041,1730483446502,-433.49034042,0.00034254,4]
[341157042,1730483446512,-500.0,0.00034254,4]
[341157043,1730483446522,-500.0,0.00034254,4]
[341157044,1730483446532,-500.0,0.00034254,4]
[341157045,1730483446541,-627.9,0.00034254,4]
[341157046,1730483446559,-2393.13,0.00034254,4]
[341157047,1730483446569,-503.07174045,0.00034254,4]
[341157048,1730483446579,-500.0,0.00034254,4]
[341157049,1730483446589,-11189.26,0.00034254,4]
[341157050,1730483446598,-500.0,0.00034254,4]
[341157051,1730483446609,-500.0,0.00034254,4]
[341157052,1730483446619,-500.0,0.00034254,4]
[341157053,1730483446628,-2485.18,0.00034254,4]
[341157054,1730483446638,-1831.55,0.00034254,4]
[341157055,1730483446647,-896.7,0.00034254,4]
[341157056,1730483446657,-1604.13,0.00034254,4]
[341157057,1730483446667,-500.0,0.00034254,4]
[341157058,1730483446676,-500.0,0.00034254,4]
[341157059,1730483446686,-926.64,0.00034254,4]
[341157060,1730483446695,-500.0,0.00034319,4]
[341157061,1730483446704,-500.0,0.00034319,4]
[341157062,1730483446715,-500.0,0.00034319,4]
[341157063,1730483446725,-500.0,0.00034319,4]
[341157064,1730483446735,-500.0,0.00034319,4]
[341157065,1730483446745,-500.0,0.00034319,4]
[341157066,1730483446755,-500.0,0.00034319,4]
[341157067,1730483446764,-500.0,0.00034319,4]
[341157068,1730483446774,-500.0,0.00034319,4]
[341157069,1730483446784,-500.0,0.00034319,4]
[341157070,1730483446793,-500.0,0.00034319,4]
[341157071,1730483446804,-500.0,0.00034319,4]
[341157072,1730483446813,-500.0,0.00034319,4]
[341157073,1730483446826,-500.0,0.00034319,4]
[341157074,1730483446837,-500.0,0.00034319,2]
[341157075,1730483446846,-500.0,0.00034319,4]
[341157076,1730483446856,-603.26036053,0.00034319,4]
[341157077,1730483446865,-1658.97,0.00034319,120]
[341157078,1730483446876,-1660.59,0.00034319,4]
[341157079,1730483446885,-500.0,0.00034319,4]
[341157080,1730483446895,-500.0,0.00034319,4]
[341157081,1730483446905,-500.0,0.00034319,4]
[341157082,1730483446914,-500.0,0.00034319,4]
[341157083,1730483446923,-500.0,0.00034319,4]
[341157084,1730483446934,-500.0,0.00034319,4]
[341157085,1730483446945,-500.0,0.00034319,4]
[341157086,1730483446957,-606.64,0.00034319,4]
[341157087,1730483446967,-562.16,0.00034319,4]
[341157088,1730483446978,-500.0,0.00034319,4]
[341157089,1730483446988,-500.0,0.00034319,4]
[341157090,1730483446998,-500.0,0.00034319,4]
[341157091,1730483447008,-500.0,0.00034319,4]
[341157092,1730483447019,-500.0,0.00034319,4]
[341157093,1730483447030,-500.0,0.00034319,4]
[341157094,1730483447040,-1186.02,0.00034319,4]
[341157095,1730483447049,-500.0,0.00034319,4]
[341157096,1730483447063,-500.0,0.00034319,4]
[341157097,1730483447073,-500.0,0.00034319,4]
[341157098,1730483447083,-500.0,0.00034319,4]
[341157099,1730483447093,-500.0,0.00034319,4]
[341157100,1730483447103,-500.0,0.00034319,4]
[341157101,1730483447113,-500.0,0.00034319,4]
[341157102,1730483447123,-500.0,0.00034319,4]
[341157103,1730483447133,-500.0,0.00034319,4]
[341157104,1730483447143,-500.0,0.00034319,4]
[341157105,1730483447152,-500.0,0.00034319,4]
[341157106,1730483447162,-500.0,0.00034319,4]
[341157107,1730483447172,-500.0,0.00034319,4]
[341157108,1730483447182,-500.0,0.00034319,4]
[341157109,1730483447191,-500.0,0.00034319,4]
[341157110,1730483447201,-500.0,0.00034319,4]
[341157111,1730483447211,-500.0,0.00034319,4]
[341157112,1730483447220,-500.0,0.00034319,4]
[341157113,1730483447229,-500.0,0.0003432,4]
[341157114,1730483447239,-500.0,0.0003432,4]
[341157115,1730483447248,-500.0,0.0003432,4]
[341157116,1730483447258,-500.0,0.0003432,4]
[341157117,1730483447267,-500.0,0.0003432,4]
[341157118,1730483447277,-500.0,0.0003432,4]
[341157119,1730483447286,-4105.46,0.0003432,4]
[341157120,1730483447299,-1741.08,0.0003432,4]
[341157121,1730483447310,-500.0,0.0003432,4]
[341157122,1730483447320,-500.0,0.0003432,4]
[341157123,1730483447329,-449.96,0.0003432,4]
[341157124,1730483447339,-1316.0,0.0003432,4]
[341157125,1730483447349,-500.0,0.0003432,4]
[341157126,1730483447360,-979.64,0.0003432,4]
[341157127,1730483447370,-867.06,0.0003432,4]
[341157128,1730483447379,-500.0,0.0003432,4]
[341157129,1730483447389,-500.0,0.0003432,4]
[341157130,1730483447398,-500.0,0.0003432,4]
[341157131,1730483447408,-500.0,0.0003432,4]
[341157132,1730483447418,-505.5927976,0.0003432,4]
[341157133,1730483447427,-500.0,0.0003432,4]
[341157134,1730483447438,-500.0,0.0003432,4]
[341157135,1730483447450,-500.0,0.0003432,4]
[341157136,1730483447459,-560.85,0.0003432,4]
[341157137,1730483447470,-500.0,0.0003432,4]
[341157138,1730483447479,-500.0,0.0003432,4]
[341157139,1730483447489,-500.0,0.0003432,4]
[341157140,1730483447498,-500.0,0.0003432,4]
[341157141,1730483447507,-500.0,0.0003432,4]
[341157142,1730483447518,-500.0,0.0003432,4]
[341157143,1730483447527,-500.0,0.00034527,4]
[341157144,1730483447537,-974.99,0.00034527,4]
[341157145,1730483447548,-500.0,0.00034527,4]
[341157146,1730483447560,-581.53,0.00034527,4]
[341157147,1730483447569,-300.74,0.00034527,4]
[341157148,1730483447579,-11687.59,0.00034527,4]
[341157149,1730483447588,-500.0,0.00034527,4]
[341157150,1730483447598,-14553.09,0.00034527,3]
[341157151,1730483447607,-1467.81,0.00034527,4]
[341157152,1730483447618,-987.71,0.00034527,4]
[341157153,1730483447627,-500.0,0.00034527,4]
[341157154,1730483447637,-500.0,0.00034528,4]
[341157155,1730483447646,-500.0,0.00034528,4]
[341157156,1730483447655,-500.0,0.00034528,4]
[341157157,1730483447665,-2393.13,0.00034528,4]
[341157158,1730483447675,-11189.26,0.00034528,4]
[341157159,1730483447685,-319.51,0.00034528,4]
[341157160,1730483447695,-500.0,0.00034528,4]
[341157161,1730483447705,-2485.18,0.00034528,4]
[341157162,1730483447715,-1831.55,0.00034528,4]
[341157163,1730483447725,-896.7,0.00034528,4]
[341157164,1730483447735,-1604.13,0.00034528,4]
[341157165,1730483447745,-512.8670858,0.00034528,4]
[341157166,1730483447755,-926.64,0.00034528,4]
[341157167,1730483447764,-326.0,0.00034573,2]
[341157168,1730483447773,-500.0,0.00034593,4]
[341157169,1730483447783,-500.0,0.00034593,4]
[341157170,1730483447792,-516.77,0.00034593,4]
[341157171,1730483447802,-516.92,0.00034593,4]
[341157172,1730483447813,-500.0,0.00034593,4]
[341157173,1730483447822,-500.0,0.00034593,4]
[341157174,1730483447831,-500.0,0.00034593,4]
[341157175,1730483447840,-500.0,0.00034593,4]
[341157176,1730483447850,-500.0,0.00034593,4]
[341157177,1730483447859,-500.0,0.00034593,4]
[341157178,1730483447869,-500.0,0.00034593,4]
[341157179,1730483447879,-500.0,0.00034593,4]
[341157180,1730483447888,-500.0,0.00034593,4]
[341157181,1730483447899,-500.0,0.00034593,4]
[341157182,1730483447910,-600.14,0.00034593,2]
[341157183,1730483447920,-500.0,0.00034593,4]
[341157184,1730483447931,-1658.97,0.00034593,120]
[341157185,1730483447943,-1660.59,0.00034593,4]
[341157186,1730483447954,-500.0,0.00034593,4]
[341157187,1730483447963,-500.0,0.00034593,4]
[341157188,1730483447973,-500.0,0.00034593,4]
[341157189,1730483447982,-500.0,0.00034593,4]
[341157190,1730483447991,-500.0,0.00034593,4]
[341157191,1730483448001,-500.0,0.00034593,4]
[341157192,1730483448011,-500.0,0.00034593,4]
[341157193,1730483448023,-500.0,0.00034593,4]
[341157194,1730483448033,-500.0,0.00034593,4]
[341157195,1730483448043,-1186.02,0.00034593,4]
[341157196,1730483448053,-500.0,0.00034593,4]
[341157197,1730483448063,-500.0,0.00034593,4]
[341157198,1730483448073,-500.0,0.00034593,4]
[341157199,1730483448083,-500.0,0.00034593,4]
[341157200,1730483448092,-500.0,0.00034593,4]
[341157201,1730483448112,-500.0,0.00034593,4]
[341157202,1730483448124,-500.0,0.00034593,4]
[341157203,1730483448134,-500.0,0.00034593,4]
[341157204,1730483448143,-500.0,0.00034593,4]
[341157205,1730483448153,-500.0,0.00034593,4]
[341157206,1730483448163,-500.0,0.00034593,4]
[341157207,1730483448172,-500.0,0.00034593,4]
[341157208,1730483448312,-500.0,0.00034593,4]
[341157209,1730483448322,-500.0,0.00034593,4]
[341157210,1730483448333,-500.0,0.00034593,4]
[341157211,1730483448342,-500.0,0.00034593,4]
[341157212,1730483448353,-500.0,0.00034593,4]
[341157213,1730483448362,-500.0,0.00034593,4]
[341157214,1730483448372,-500.0,0.00034594,4]
[341157215,1730483448382,-500.0,0.00034594,4]
[341157216,1730483448392,-500.0,0.00034594,4]
[341157217,1730483448402,-500.0,0.00034594,4]
[341157218,1730483448411,-4105.46,0.00034594,4]
[341157219,1730483448421,-1741.08,0.00034594,4]
[341157220,1730483448430,-500.0,0.00034594,4]
[341157221,1730483448442,-500.0,0.00034594,4]
[341157222,1730483448452,-1316.0,0.00034594,4]
[341157223,1730483448461,-500.0,0.00034594,4]
[341157224,1730483448471,-979.64,0.00034594,4]
[341157225,1730483448481,-867.06,0.00034594,4]
[341157226,1730483448490,-500.0,0.00034594,4]
[341157227,1730483448499,-500.0,0.00034594,4]
[341157228,1730483448510,-500.0,0.00034594,4]
[341157229,1730483448519,-500.0,0.00034594,4]
[341157230,1730483448529,-500.0,0.00034594,4]
[341157231,1730483448539,-500.0,0.00034594,4]
[341157232,1730483448549,-560.85,0.00034594,4]
[341157233,1730483448560,-500.0,0.00034594,4]
[341157234,1730483448570,-500.0,0.00034594,4]
[341157235,1730483448579,-277.44618634,0.00034594,4]
[341157236,1730483448589,-500.0,0.00034594,4]
[341157237,1730483448598,-500.0,0.00034594,4]
[341157238,1730483448608,-500.0,0.00034594,4]
[341157239,1730483448618,-468.58899977,0.00034801,4]
[341157240,1730483448628,-974.99,0.00034801,4]
[341157241,1730483448638,-500.0,0.00034801,4]
[341157242,1730483448648,-11687.59,0.00034801,4]
[341157243,1730483448658,-500.0,0.00034801,4]
[341157244,1730483448668,-535.47196195,0.00034801,3]
[341157245,1730483455260,162.974897,0.00013973,2]
[341157248,1730483957593,168.089648,0.00013973,2]
[341157295,1730484632528,-286.6862773,0.00031554,2]
[341157297,1730484632538,-62.5937227,0.00032877,120]
[341157320,1730484638794,-286.16286834,0.00032877,120]
[341157375,1730484640624,-542.90807367,0.00032877,120]
[341157376,1730484640636,-578.0,0.00032877,120]
[341157377,1730484640728,-375.07476029,0.00032877,120]
[341157378,1730484640740,-262.56490722,0.00033055,2]
[341157379,1730484640752,-176.89065646,0.00033055,2]
[341157380,1730484640762,-500.0,0.00033153,4]
[341157381,1730484640771,-1331.61,0.00033153,4]
[341157382,1730484640781,-500.0,0.00033153,4]
[341157383,1730484640790,-500.0,0.00033153,4]
[341157384,1730484640799,-500.0,0.00033153,4]
[341157385,1730484640809,-8598.38,0.00033153,4]
[341157386,1730484640819,-500.0,0.00033153,4]
[341157387,1730484640828,-500.0,0.00033153,4]
[341157389,1730484640838,-10892.51,0.00033153,3]
[341157390,1730484640847,-500.0,0.00033153,4]
[341157392,1730484640857,-2060.84,0.00033153,4]
[341157393,1730484640867,-1102.64,0.00033153,4]
[341157394,1730484640878,-222.41573537,0.00033154,7]
[341157395,1730484640889,-500.0,0.00033154,4]
[341157396,1730484640899,-500.0,0.00033154,4]
[341157397,1730484640909,-506.47371534,0.00033154,4]
[341157398,1730484640919,-500.0,0.00033154,4]
[341157399,1730484640930,-605.0,0.00033154,4]
[341157400,1730484640940,-500.0,0.00033154,4]
[341157401,1730484640951,-500.0,0.00033154,4]
[341157402,1730484640961,-500.0,0.00033154,4]
[341157403,1730484640971,-500.0,0.00033154,4]
[341157404,1730484640981,-500.0,0.00033154,4]
[341157405,1730484640993,-500.0,0.00033154,4]
[341157406,1730484641002,-1794.85,0.00033154,4]
[341157407,1730484641011,-500.0,0.00033154,4]
[341157408,1730484641023,-500.0,0.00033154,4]
[341157409,1730484641034,-500.0,0.00033154,4]
[341157410,1730484641043,-8558.61,0.00033154,4]
[341157411,1730484641054,-500.0,0.00033154,4]
[341157412,1730484641064,-500.0,0.00033154,4]
[341157413,1730484641074,-500.0,0.00033154,4]
[341157414,1730484641083,-2140.67,0.00033154,4]
[341157415,1730484641093,-1519.49,0.00033154,4]
[341157416,1730484641102,-1286.34,0.00033154,4]
[341157417,1730484641111,-1203.1,0.00033154,4]
[341157418,1730484641121,-500.0,0.00033155,4]
[341157419,1730484641132,-500.0,0.00033155,4]
[341157420,1730484641144,-500.0,0.00033155,4]
[341157421,1730484641155,-500.0,0.00033155,4]
[341157422,1730484641165,-500.0,0.00033155,4]
[341157423,1730484641175,-500.0,0.00033155,4]
[341157424,1730484641186,-500.0,0.00033155,4]
[341157425,1730484641200,-500.0,0.00033155,4]
[341157426,1730484641210,-500.0,0.00033155,4]
[341157427,1730484641221,-500.0,0.00033155,4]
[341157428,1730484641232,-500.0,0.00033155,4]
[341157429,1730484641243,-500.0,0.00033155,4]
[341157430,1730484641252,-500.0,0.00033155,4]
[341157431,1730484641263,-500.0,0.00033155,4]
[341157432,1730484641273,-500.0,0.00033155,4]
[341157433,1730484641283,-500.0,0.00033155,4]
[341157434,1730484641294,-500.0,0.00033155,4]
[341157435,1730484641306,-500.0,0.00033155,2]
[341157436,1730484641319,-500.0,0.00033155,4]
[341157437,1730484641330,-500.0,0.00033155,4]
[341157438,1730484641340,-1601.74,0.00033155,4]
[341157439,1730484641351,-2786.23,0.00033155,120]
[341157440,1730484641361,-500.0,0.00033155,4]
[341157441,1730484641371,-500.0,0.00033155,4]
[341157442,1730484641380,-500.0,0.00033155,4]
[341157443,1730484641395,-500.0,0.00033155,4]
[341157444,1730484641409,-500.0,0.00033155,4]
[341157445,1730484641422,-500.0,0.00033155,4]
[341157446,1730484641433,-500.0,0.00033155,4]
[341157447,1730484641445,-500.0,0.00033155,4]
[341157448,1730484641456,-500.0,0.00033155,4]
[341157449,1730484641465,-500.0,0.00033155,4]
[341157450,1730484641477,-500.0,0.00033155,4]
[341157451,1730484641489,-500.0,0.00033155,4]
[341157452,1730484641498,-500.0,0.00033155,4]
[341157453,1730484641507,-500.0,0.00033155,4]
[341157454,1730484641517,-500.0,0.00033155,4]
[341157455,1730484641526,-500.0,0.00033155,4]
[341157456,1730484641535,-500.0,0.00033155,4]
[341157457,1730484641544,-500.0,0.00033155,4]
[341157458,1730484641554,-171.12281828,0.00033155,4]
[341157459,1730484641563,-500.0,0.00033155,4]
[341157460,1730484641573,-500.0,0.00033155,4]
[341157461,1730484641583,-500.0,0.00033155,4]
[341157462,1730484641592,-500.0,0.00033155,4]
[341157463,1730484641604,-506.46726146,0.00033155,4]
[341157464,1730484641615,-500.0,0.00033155,4]
[341157465,1730484641625,-500.0,0.00033155,4]
[341157466,1730484641635,-601.1,0.00033155,4]
[341157467,1730484641646,-1254.46,0.00033155,4]
[341157468,1730484641656,-500.0,0.00033155,4]
[341157469,1730484641667,-500.0,0.00033155,4]
[341157470,1730484641677,-500.0,0.00033155,4]
[341157471,1730484641687,-500.0,0.00033155,4]
[341157472,1730484641698,-500.0,0.00033155,4]
[341157473,1730484641708,-500.0,0.00033155,4]
[341157474,1730484641718,-500.0,0.00033155,4]
[341157475,1730484641730,-500.0,0.00033155,4]
[341157476,1730484641741,-1410.65,0.00033155,4]
[341157477,1730484641752,-606.11,0.00033155,4]
[341157478,1730484641762,-500.0,0.00033155,4]
[341157479,1730484641771,-500.0,0.00033155,4]
[341157480,1730484641781,-500.0,0.00033155,4]
[341157481,1730484641791,-500.0,0.00033155,4]
[341157482,1730484641800,-500.0,0.00033155,4]
[341157483,1730484641810,-500.0,0.00033155,4]
[341157484,1730484641820,-500.0,0.00033155,4]
[341157485,1730484641829,-500.0,0.00033155,4]
[341157486,1730484641839,-239.98242882,0.00033155,4]
[341157487,1730484641848,-500.0,0.00033155,4]
[341157488,1730484641857,-500.0,0.00033155,4]
[341157489,1730484641866,-500.0,0.00033155,4]
[341157490,1730484641875,-500.0,0.00033155,4]
[341157491,1730484641884,-500.0,0.00033155,4]
[341157492,1730484641894,-500.0,0.00033155,4]
[341157493,1730484641903,-500.0,0.00033155,4]
[341157494,1730484641913,-500.0,0.00033155,4]
[341157495,1730484641922,-500.0,0.00033155,4]
[341157496,1730484641931,-432.05621866,0.00033155,4]
[341157497,1730484641940,-500.0,0.00033155,4]
[341157498,1730484641949,-500.0,0.00033155,4]
[341157499,1730484641959,-500.0,0.00033155,4]
[341157500,1730484641968,-500.0,0.00033155,4]
[341157501,1730484641977,-500.0,0.00033156,4]
[341157502,1730484641987,-500.0,0.00033156,4]
[341157503,1730484641997,-3434.74,0.00033156,4]
[341157504,1730484642007,-1378.35,0.00033156,4]
[341157505,1730484642016,-500.0,0.00033156,4]
[341157506,1730484642026,-1406.68,0.00033156,4]
[341157507,1730484642036,-775.55,0.00033156,4]
[341157508,1730484642046,-500.0,0.00033156,4]
[341157509,1730484642057,-340.80874925,0.00033157,4]
[341157510,1730484642066,-500.0,0.00033157,4]
[341157511,1730484642075,-500.0,0.00033157,4]
[341157512,1730484642085,-500.0,0.00033157,4]
[341157513,1730484642095,-500.0,0.00033157,4]
[341157514,1730484642104,-500.0,0.00033158,4]
[341157515,1730484642114,-500.0,0.00033158,4]
[341157516,1730484642123,-500.0,0.00033158,4]
[341157517,1730484642133,-500.0,0.00033158,4]
[341157518,1730484642142,-484.68361015,0.00033158,4]
[341157519,1730484642151,-686.42,0.00033158,4]
[341157520,1730484642161,-500.0,0.00033158,4]
[341157521,1730484642170,-500.0,0.00033158,4]
[341157522,1730484642180,-500.0,0.00033158,4]
[341157523,1730484642189,-500.0,0.00033158,4]
[341157524,1730484642199,-500.0,0.00033158,4]
[341157525,1730484642208,-500.0,0.00033158,4]
[341157526,1730484642217,-500.0,0.00033158,4]
[341157527,1730484642226,-500.0,0.00033158,4]
[341157528,1730484642236,-500.0,0.00033158,4]
[341157529,1730484642246,-500.0,0.00033158,4]
[341157530,1730484642255,-500.0,0.00033159,7]
[341157531,1730484642264,-500.0,0.00033426,7]
[341157532,1730484642274,-200.86060172,0.00033426,7]
[341157533,1730484642282,-500.0,0.00033427,4]
[341157534,1730484642292,-1331.61,0.00033427,4]
[341157535,1730484642301,-500.0,0.00033427,4]
[341157536,1730484642310,-500.0,0.00033427,4]
[341157537,1730484642319,-500.0,0.00033427,4]
[341157538,1730484642329,-8598.38,0.00033427,4]
[341157539,1730484642338,-500.0,0.00033427,4]
[341157540,1730484642347,-500.0,0.00033427,4]
[341157541,1730484642356,-10892.51,0.00033427,3]
[341157542,1730484642366,-500.0,0.00033427,4]
[341157543,1730484642375,-2060.84,0.00033427,4]
[341157544,1730484642385,-1102.64,0.00033427,4]
[341157545,1730484642395,-500.0,0.00033428,4]
[341157546,1730484642407,-500.0,0.00033428,4]
[341157547,1730484642416,-500.0,0.00033428,4]
[341157548,1730484642425,-605.0,0.00033428,4]
[341157549,1730484642434,-500.0,0.00033428,4]
[341157550,1730484642445,-500.0,0.00033428,4]
[341157551,1730484642454,-500.0,0.00033428,4]
[341157552,1730484642464,-500.0,0.00033428,4]
[341157553,1730484642475,-500.0,0.00033428,4]
[341157554,1730484642485,-500.0,0.00033428,4]
[341157555,1730484642495,-1794.85,0.00033428,4]
[341157556,1730484642504,-500.0,0.00033428,4]
[341157557,1730484642513,-500.0,0.00033428,4]
[341157558,1730484642523,-500.0,0.00033428,4]
[341157559,1730484642533,-8558.61,0.00033428,4]
[341157560,1730484642542,-500.0,0.00033428,4]
[341157561,1730484642552,-500.0,0.00033428,4]
[341157562,1730484642562,-500.0,0.00033428,4]
[341157563,1730484642571,-2140.67,0.00033428,4]
[341157564,1730484642581,-1519.49,0.00033428,4]
[341157565,1730484642590,-1286.34,0.00033428,4]
[341157566,1730484642600,-1203.1,0.00033428,4]
[341157567,1730484642609,-500.0,0.00033429,4]
[341157568,1730484642619,-500.0,0.00033429,4]
[341157569,1730484642628,-500.0,0.00033429,4]
[341157570,1730484642636,-500.0,0.00033429,4]
[341157571,1730484642646,-500.0,0.00033429,4]
[341157572,1730484642655,-500.0,0.00033429,4]
[341157573,1730484642664,-500.0,0.00033429,4]
[341157574,1730484642673,-500.0,0.00033429,4]
[341157575,1730484642682,-500.0,0.00033429,4]
[341157576,1730484642692,-500.0,0.00033429,4]
[341157577,1730484642701,-500.0,0.00033429,4]
[341157578,1730484642710,-500.0,0.00033429,4]